Cogmind - Beta 13 --- EXPLORER MODE // 2024.05.08 @ 11:40:35 Player: tcfire Result: Self-destructed Performance ------------- Evolutions (2) 1000 Regions Visited (5) 1000 Robots Destroyed (35) 175 Value Destroyed (812) 812 Prototype IDs (2) 40 Alien Tech Used (0) 0 Bonus (-1) -1 TOTAL SCORE: 3026 Bonus ------- Follower Combat Kills 252 Friendly Fire -253 Cogmind --------- Core Integrity 464/550 Matter 300/300 Energy 275/275 System Corruption 0% Temperature Cool (0) Movement Core (250) Ox4 Location -8/Materials Parts ------- > --- POWER (3) -------- Deuterium Engine > --- PROPULSION (3) --- (None) > --- UTILITY (4) ------ (None) > --- WEAPON (2) ------- Particle Cannon > --- INVENTORY (5) ---- Ion Engine Ion Engine Deuterium Engine Cooling System Transport Network Coupler Peak State ------------ > --- POWER ------------ Deuterium Engine Deuterium Engine > --- PROPULSION ------- Wheel Wheel > --- UTILITY ---------- Huge Storage Unit High-capacity Matter Pod Shield Generator High-powered Tractor Beam > --- WEAPON ----------- Heavy Assault Rifle Improved Datajack > --- INVENTORY -------- Ion Engine Ion Engine Ion Engine Improved Ion Engine Deuterium Engine Deuterium Engine Wheel Heat Sink Cooling System Medium Storage Unit ECM Suite Beam Rifle Field Laser Particle Cannon [Rating: 21] Favorites ----------- Power Ion Engine Engine Ion Engine Power Core Light Nuclear Core Propulsion Wheel Treads Light Treads Wheel Wheel Hover Unit Improved Hover Unit Utility Signal Interpreter Device Shield Generator Storage Huge Storage Unit Processor Signal Interpreter Weapon Light Assault Rifle Energy Gun EM Pulse Gun Energy Cannon Particle Cannon Ballistic Gun Light Assault Rifle Special Melee Weapon Improved Datajack Build | -11 -10 -10 -9 -9 -8 ------- Run | Yrd Mat Min Mat Min Mat Slots Evolved 5 | . 1 . 2 . 2 Power 2 | . . . 1 . 1 Propulsion 1 | . . . . . 1 Utility 2 | . 1 . 1 . . Weapon . | . . . . . . Parts Attached 39 | 6 11 4 13 4 1 Power 10 | 1 2 1 5 . 1 Engine 8 | 1 2 . 4 . 1 Core 2 | . . 1 1 . . Reactor . | . . . . . . Propulsion 7 | 2 3 1 . 1 . Treads 2 | 2 . . . . . Leg . | . . . . . . Wheel 3 | . 1 1 . 1 . Hover 2 | . 2 . . . . Flight . | . . . . . . Utility 13 | 2 5 1 4 1 . Device 6 | . 2 1 3 . . Storage 5 | . 3 . 1 1 . Processor 2 | 2 . . . . . Hackware . | . . . . . . Protection . | . . . . . . Artifact . | . . . . . . Weapon 9 | 1 1 1 4 2 . Energy Gun 4 | . 1 1 1 1 . Energy Cannon 2 | . . . 1 1 . Ballistic Gun 2 | 1 . . 1 . . Ballistic Cannon . | . . . . . . Launcher . | . . . . . . Special Weapon . | . . . . . . Impact Weapon . | . . . . . . Slashing Weapon . | . . . . . . Piercing Weapon . | . . . . . . Special Melee Weapon 1 | . . . 1 . . Unidentified Prototypes . | . . . . . . Parts Lost 13 | . 2 1 . 4 6 Power 3 | . 1 . . . 2 Propulsion 3 | . . . . 1 2 Utility 3 | . 1 . . 1 1 Weapon 4 | . . 1 . 2 1 Highest Loss Streak 4 | . 1 1 . 4 4 To Critical Strikes . | . . . . . . Average Slot Usage (%) 86 | . 88 76 99 92 53 Engine 13 | . 11 10 17 20 15 Core 1 | . . 1 2 . . Treads 1 | . 4 . . . . Wheel 10 | . . 13 20 19 6 Hover 7 | . 19 . . . . Device 7 | . 6 . 17 15 4 Storage 12 | . 7 12 20 20 12 Processor 10 | . 17 12 2 . . Energy Gun 8 | . 7 14 4 3 5 Energy Cannon 2 | . . . 9 3 8 Ballistic Gun 8 | . 12 9 5 5 . Naked Turns . | . . . . . . Heaviest Build 113 | 6 89 90 113 109 49 Greatest Support 40 | 40 40 20 20 20 20 Greatest Overweight (x) 12 | 1 8 8 5 5 12 Average Overweight (x) 3 | . 1 7 4 2 3 Largest Inventory Capacity 25 | 5 25 25 25 25 10 Average Capacity 17 | 5 13 25 25 18 8 Most Carried 15 | 5 9 13 15 13 7 Average Carried 6 | . 4 9 10 10 6 Final Capacity 25 | 5 25 25 25 10 5 Final Carried 13 | 1 9 11 13 8 5 Class Distribution -------------------- 100% | Hacker-Mutant Dominant Class ---------------- Hacker-Mutant | -10/Materials Hacker-Mutant | -10/Mines Hacker-Mutant | -9/Materials Hacker-Mutant | -9/Mines Hacker-Mutant | -8/Materials Resources | -11 -10 -10 -9 -9 -8 ----------- Run | Yrd Mat Min Mat Min Mat Matter Collected 929 | 48 328 281 193 79 . Remotely 149 | . . . 70 79 . Salvage Created 1260 | . 417 136 574 133 . Parts 90 | . 30 11 42 7 . Haulers Intercepted 1 | . . . 1 . . Recyclers Shooed . | . . . . . . Parts Field Recycled . | . . . . . . Retrieved Matter . | . . . . . . Parts Self-Destructed . | . . . . . . Prevented . | . . . . . . Kills | -11 -10 -10 -9 -9 -8 ------- Run | Yrd Mat Min Mat Min Mat Combat Hostiles Destroyed 31 | . 9 4 10 8 . Melee 1 | . 1 . . . . Guns 19 | . 8 4 1 6 . Cannons 10 | . . . 8 2 . Classes Destroyed 9 | . 4 . 3 2 . Worker 3 | . 1 1 1 . . Hauler 1 | . . . 1 . . Watcher 3 | . 2 . 1 . . Swarmer 10 | . 2 4 2 2 . Grunt 11 | . 7 1 3 . . Brawler 1 | . . . 1 . . Duelist 1 | . . . . 1 . Sentry 4 | . . . 4 . . Assembled 5 | . . . . 5 . Thug 1 | . . . 1 . . Best Kill Streak 6 | . 4 2 6 5 . Combat Bots Only 5 | . 4 2 4 5 . Max Kills in Single Turn 2 | . 2 1 2 2 . Gunslinging . | . . . . . . Exploded . | . . . . . . Melee 1 | . 1 . . . . Uniques/NPCs Destroyed . | . . . . . . Combat | -11 -10 -10 -9 -9 -8 -------- Run | Yrd Mat Min Mat Min Mat Hostile Shots Fired 261 | . 71 17 43 86 44 Missed 67 | . 26 3 14 19 5 Damage Taken 1412 | . 374 113 163 436 326 Core 308 | . 84 15 30 93 86 Absorbed by Shields 174 | . . . 71 103 . Ignored by Resistances 964 | . 226 60 144 337 197 Core Remaining (%) 76 | 100 . 60 . 69 . Volleys Fired 111 | 1 49 13 31 16 1 Largest 2 | 1 2 2 2 2 2 Hottest 131 | 20 60 96 131 131 131 Shots Fired 176 | 1 70 22 61 20 2 Gun 141 | 1 70 22 31 16 1 Cannon 35 | . . . 30 4 1 Launcher . | . . . . . . Special . | . . . . . . Kinetic 88 | 1 50 4 21 12 . Thermal 60 | . . 10 40 8 2 Explosive . | . . . . . . Electromagnetic 28 | . 20 8 . . . Robot Hit Streak 22 | . 22 18 16 8 9 Robot Miss Streak 2 | . 2 1 2 1 1 Penetration Max . | . . . . . . Secondary Targets 2 | . 2 . . . . Max Gunslinging Chain 1 | . 1 . . . . Shots Hit Robots 133 | . 58 16 42 16 1 Core Hits 63 | . 28 7 17 11 . Critical Kills . | . . . . . . Critical Parts Destroyed 1 | . 1 . . . . Critical Strikes 2 | . 2 . . . . Destroy 1 | . 1 . . . . Corrupt 1 | . 1 . . . . Melee Attacks 1 | . . . . 1 . Impact . | . . . . . . Slashing . | . . . . . . Piercing . | . . . . . . Sneak Attacks 1 | . . . . 1 . Combat Hostiles . | . . . . . . Follow-up Attacks . | . . . . . . Damage Inflicted 2080 | 11 627 241 882 301 18 Guns 1383 | 8 596 206 350 205 18 Cannons 598 | . . . 516 82 . Explosions . | . . . . . . Melee . | . . . . . . Ramming 99 | 3 31 35 16 14 . Kinetic 712 | 8 347 19 201 137 . Thermal 934 | . . 101 665 150 18 Explosive . | . . . . . . Electromagnetic 335 | . 249 86 . . . Impact . | . . . . . . Slashing . | . . . . . . Piercing . | . . . . . . Highest Corruption 2 | . 1 1 2 2 . Average Corruption 1 | . 1 1 1 2 . Corruption Purged . | . . . . . . Corruption Blocked . | . . . . . . Effects 24 | . 9 7 5 3 . Message Errors 4 | . 2 1 1 . . Matter Fused 4 | . 1 3 . . . Heat Flow Errors 1 | . 1 . . . . Energy Discharges 5 | . 1 2 1 1 . Parts Fused 1 | . . . 1 . . Data Loss (minor) 6 | . 3 . 1 2 . Data Loss (major) 1 | . . . 1 . . Misfires 2 | . 1 1 . . . Overload Shots . | . . . . . . Overflow Damage 4 | . . . 1 3 . Projectiles 4 | . . . 1 3 . Explosions . | . . . . . . Melee . | . . . . . . Knockbacks 1 | . . . 1 . . Impact 1 | . . . 1 . . Kinetic . | . . . . . . Secondary . | . . . . . . Self-Inflicted Damage 44 | . 13 17 7 7 . Shots . | . . . . . . Rammed 17 | 1 9 2 2 3 . Targets Rammed 17 | 1 9 2 2 3 . Kicked . | . . . . . . Crushed . | . . . . . . Highest Temperature 348 | . 279 124 340 348 90 Average Temperature 93 | . 67 49 112 123 52 Received Heat Transfer 970 | . 324 27 105 514 . Effects 4 | . . . 4 . . Energy Bleed 2 | . . . 2 . . Interference 2 | . . . 2 . . Siege Activations . | . . . . . . Robots Corrupted . | . . . . . . Combat Hostiles . | . . . . . . Parts Fried 2 | . 2 . . . . Impact Corruptions . | . . . . . . Robots Melted 1 | . . . 1 . . Combat Hostiles 1 | . . . 1 . . Parts Melted 2 | . . 1 1 . . Heat Transferred 1850 | . . 259 1258 296 37 Parts Sabotaged . | . . . . . . Parts Stolen . | . . . . . . Parts Stripped . | . . . . . . Power Chain Reactions . | . . . . . . Alert | -11 -10 -10 -9 -9 -8 ------- Run | Yrd Mat Min Mat Min Mat Peak Influence 238 | . 95 102 238 80 26 Initial 28 | . . 26 28 . 11 Average 34 | . 30 34 75 40 4 Maximum Alert Level 1 | . . . 1 . . Low Security (%) 98 | 100 100 100 91 100 100 Level 1 1 | . . . 8 . . Level 2 . | . . . . . . Level 3 . | . . . . . . Level 4 . | . . . . . . Level 5 . | . . . . . . High Security . | . . . . . . Max Security . | . . . . . . Squads Dispatched 2 | . 1 . . . 1 Investigation 1 | . 1 . . . . Extermination . | . . . . . . Reinforcement 1 | . . . . . 1 Assault . | . . . . . . Garrison . | . . . . . . Intercept . | . . . . . . Searches Triggered . | . . . . . . Construction Impeded . | . . . . . . Haulers Reinforced . | . . . . . . Active Scanning Responses . | . . . . . . Cargo Convoy Interrupts . | . . . . . . Stealth | -11 -10 -10 -9 -9 -8 --------- Run | Yrd Mat Min Mat Min Mat Distress Signals 5 | . 1 . 3 . 1 Communications Jammed . | . . . . . . Distress Signals . | . . . . . . Times Spotted 61 | . 18 8 19 12 4 Peak Tracking Total 9 | . 5 2 4 9 3 Tactical Retreats 1 | . . . . 1 . Traps | -11 -10 -10 -9 -9 -8 ------- Run | Yrd Mat Min Mat Min Mat Traps Triggered 6 | . 3 . 3 . . Indirectly . | . . . . . . Trap Hack Attempts . | . . . . . . Triggered . | . . . . . . Disarmed . | . . . . . . Reprogrammed . | . . . . . . Reused . | . . . . . . Traps Extracted . | . . . . . . Installed . | . . . . . . Triggered . | . . . . . . Machines | -11 -10 -10 -9 -9 -8 ---------- Run | Yrd Mat Min Mat Min Mat Machines Disabled 3 | . . 2 1 . . Max in Single Turn 1 | . . 1 1 . . Machines Repaired . | . . . . . . Machines Dismantled . | . . . . . . Machines Sabotaged . | . . . . . . Overloaded Fab Kills . | . . . . . . Hacking | -11 -10 -10 -9 -9 -8 --------- Run | Yrd Mat Min Mat Min Mat Machines Accessed 4 | . 2 . 2 . . Terminals 3 | . 2 . 1 . . Fabricators . | . . . . . . Repair Stations . | . . . . . . Recycling Units 1 | . . . 1 . . Scanalyzers . | . . . . . . Garrison Access . | . . . . . . Total Hacks 13 | . 9 . 4 . . Successful 8 | . 5 . 3 . . Failed 5 | . 4 . 1 . . Catastrophic 1 | . 1 . . . . Database Lockouts . | . . . . . . Manual . | . . . . . . Terminals 11 | . 9 . 2 . . Fabricators . | . . . . . . Repair Stations . | . . . . . . Recycling Units 2 | . . . 2 . . Scanalyzers . | . . . . . . Garrison Access . | . . . . . . Terminal Hacks 6 | . 5 . 1 . . Record 3 | . 3 . . . . Robot Analysis 1 | . 1 . . . . Prototype ID Bank 1 | . 1 . . . . Dispatch Records 1 | . . . 1 . . Fabricator Hacks . | . . . . . . Repair Station Hacks . | . . . . . . Recycling Unit Hacks 2 | . . . 2 . . Recycle Component 1 | . . . 1 . . Retrieve Components 1 | . . . 1 . . Scanalyzer . | . . . . . . Garrison Access Hacks . | . . . . . . Unauthorized Hacks . | . . . . . . Terminals . | . . . . . . Fabricators . | . . . . . . Repair Stations . | . . . . . . Recycling Units . | . . . . . . Scanalyzers . | . . . . . . Garrison Access . | . . . . . . Data Cores Recovered . | . . . . . . Used . | . . . . . . Hacking Detections 3 | . 2 . 1 . . Full Trace Events 1 | . 1 . . . . Feedback Events . | . . . . . . Feedback Blocked . | . . . . . . Robot Schematics Acquired . | . . . . . . Robots Built . | . . . . . . Authchips . | . . . . . . Time . | . . . . . . Total Robot Build Rating . | . . . . . . Part Schematics Acquired . | . . . . . . Parts Built . | . . . . . . Authchips . | . . . . . . Time . | . . . . . . Total Part Build Rating . | . . . . . . Parts Repaired . | . . . . . . Time . | . . . . . . Parts Recycled 1 | . . . 1 . . Recycled Matter . | . . . . . . Retrieved Matter . | . . . . . . Retrieved Components 10 | . . . 10 . . Parts Scanalyzed . | . . . . . . Part Schematics Acquired . | . . . . . . Parts Damaged . | . . . . . . Bothacking | -11 -10 -10 -9 -9 -8 ------------ Run | Yrd Mat Min Mat Min Mat Used RIF Installer . | . . . . . . Robots Hacked . | . . . . . . Non-combat . | . . . . . . Combat . | . . . . . . Robot Hacks Applied . | . . . . . . Relay Couplers Released . | . . . . . . Fabnet Peak Effective % . | . . . . . . Robots Rewired . | . . . . . . Allies Hacked . | . . . . . . Hacks Repelled . | . . . . . . Allies | -11 -10 -10 -9 -9 -8 -------- Run | Yrd Mat Min Mat Min Mat Total Allies 5 | . . 5 . . . Largest Group 3 | . . 3 2 . . Highest-Rated Group 61 | . . 61 47 . . Highest-Rated Ally 31 | . . 31 31 . . Total Orders . | . . . . . . Ally Attacks 38 | . . 20 18 . . Total Damage 533 | . . 271 262 . . Kills 10 | . . 4 6 . . Allies Corrupted . | . . . . . . Allies Melted . | . . . . . . Intel | -11 -10 -10 -9 -9 -8 ------- Run | Yrd Mat Min Mat Min Mat Robot Analysis Total 1 | . 1 . . . . Derelict Logs Recovered . | . . . . . . Drone Launches . | . . . . . . Drone Recoveries . | . . . . . . Exploration | -11 -10 -10 -9 -9 -8 ------------- Run | Yrd Mat Min Mat Min Mat Turns Passed 4384 | 799 1378 1042 876 173 116 Spaces Moved 1990 | 163 647 521 484 107 68 Core 34 | 20 . . . . 14 Treads 262 | 143 119 . . . . Legs . | . . . . . . Wheels 1204 | . 38 521 484 107 54 Hover 490 | . 490 . . . . Flight . | . . . . . . Fastest Speed 50 | 50 56 140 140 95 110 Average Speed 163 | 148 158 191 154 120 158 Slowest Speed 650 | 160 416 200 155 155 650 Overloaded Moves . | . . . . . . Propulsion Burnouts . | . . . . . . Robots Hopped . | . . . . . . Cave-ins Triggered . | . . . . . . Exploration Rate (%) 40 | 20 65 89 39 26 6 Regions Visited 5 Branch Regions 2 Pre-discovered Areas . | . . . . . . Known Exits Taken 5 | 1 1 1 1 1 . Unknown Exits Taken . | . . . . . . Scrap Searched 1 | . . 1 . . . Spaces Dug . | . . . . . . Terrain Destroyed . | . . . . . . Melee . | . . . . . . Projectile . | . . . . . . AOE . | . . . . . . Terrain Rammed . | . . . . . . Walls Destroyed . | . . . . . . Machines Disabled . | . . . . . . Actions | -11 -10 -10 -9 -9 -8 --------- Run | Yrd Mat Min Mat Min Mat Total 2963 | 718 944 545 551 131 74 Wait 745 | 541 202 . . . 2 Move 1985 | 162 646 520 483 106 68 Hop . | . . . . . . Pick Up 42 | 7 17 5 13 . . Fast Attach . | . . . . . . Attach 30 | 6 10 3 6 4 1 Detach 5 | . 3 . 2 . . Swap 9 | . 1 1 7 . . Drop 18 | . 7 1 7 1 2 Fire 111 | 1 49 13 31 16 1 Melee 1 | . . . . 1 . Ram 16 | . 9 2 2 3 . Kick . | . . . . . . Crush 1 | 1 . . . . . Escape Stasis . | . . . . . . Rewire . | . . . . . . Trap . | . . . . . . Miscellaneous . | . . . . . . Route ------- -11/Scrapyard -10/Materials (discovered 3 exits: *Mat x2 / *Min) -10/Mines -9/Materials (discovered 2 exits: *Min x2) -9/Mines -8/Materials History --------- Turn | Location | Event 215 | -11/Scrapyard | Identified exit to Materials 215 | -11/Scrapyard | Discovered exit to Materials (range 15) 800 | -11/Scrapyard | Entered Materials 800 | -10/Materials | Evolved 1 slot: Utility x1 801 | -10/Materials | Build established: Hacker-Mutant 1601 | -10/Materials | Identified exit to Materials 1601 | -10/Materials | Discovered exit to Materials (range 6) 1838 | -10/Materials | Discovered exit to Materials (range 15) 2104 | -10/Materials | Identified exit to Mines 2104 | -10/Materials | Discovered exit to Mines (range 7) 2178 | -10/Materials | Entered Mines 2330 | -10/Mines | Assisted by bots powering up and referring to "LRC-V3" 3197 | -10/Mines | Discovered exit to Materials (range 5) 3220 | -10/Mines | Entered Materials 3220 | -9/Materials | Accompanied by 2 allies 3220 | -9/Materials | Evolved 2 slots: Power x1, Utility x1 3225 | -9/Materials | Led the pair of lost Derelicts to an unsafe place 3822 | -9/Materials | Identified exit to Mines 3822 | -9/Materials | Discovered exit to Mines (range 15) 4068 | -9/Materials | Discovered exit to Mines (range 9) 4096 | -9/Materials | Entered Mines 4113 | -9/Mines | Assembled infested the area 4118 | -9/Mines | Assisted by a Guerilla fighting off Assembled 4230 | -9/Mines | Lost 4 parts (1n1u2w) 4233 | -9/Mines | Found a hidden stash of uninstalled traps 4259 | -9/Mines | Identified exit to Materials 4259 | -9/Mines | Discovered exit to Materials (range 5) 4269 | -9/Mines | Entered Materials 4269 | -8/Materials | Evolved 2 slots: Power x1, Propulsion x1 4381 | -8/Materials | Lost 4 parts (1p1n1u1w) 4385 | -8/Materials | Self-destructed Last Messages --------------- ALERT: Hostiles spotted, dispatching reinforcements to Terminal M006. Slug penetrates Electrolysis Chamber. Electrolysis Chamber disabled. Hpw. Tractor Beam destroyed. Slug penetrates Electrolysis Chamber. Wheel destroyed. T-07 Excavator is excavating. Penetrated by Slug. Field Laser destroyed. T-07 Excavator is excavating. Deuterium Engine destroyed. Penetrated by Slug. Dropped Med. Storage Unit. Discarded Hcp. Matter Pod. T-07 Excavator is excavating. Penetrated by Slug. T-07 Excavator is excavating. Penetrated by Slug. Slug penetrates Wall. Map ----- +----------------------------------------------------+ | | | | | | | | | | | | | | | | | ?????????????????????????????????????????????????? | | ??????????####???????????????????????????????????? | | ??????????#T"#???????????????????????????????????? | | ????????### "###########?????????????????????????? | | ????????# #?????????????????????????? | | ????????# ###########???????????????? | | ????????# # #???????????????? | | ????????############ # #???????????????? | | ????????????# T # #???????????????? | | ????????????# # #! " """ #???????????????? | | ?????????????# +!""" """ #???????????????? | | ??????????????# # #*""" "" #???????????????? | | ?????????????????### # #???????????????? | | ???????????????????# # #???????????????? | | ???????????????????# ###########???????????????? | | ???????????????????# #########?????????????????? | | ???????????????????# # %= #?????????????????? | | ???????????????????# + @= #?????????????????? | | ???????????????????# # = !#?????????????????? | | ???????????????????+ #########?????????????????? | | ???????????????????# #?????????????????????????? | | ???????????????????# #?????????????????????????? | | ???????????????????# #?????????????????????????? | | ???????????????????# #?????????????????????????? | | ???????????????????# /?????????????????????????? | | ???????????????????# #?????????????????????????? | | ???????????????????# ??????????????????????????? | | ???????????????????# ??????????????????????????? | | ???????????????????# ??????????????????????????? | | ???????????????????# ??????????????????????????? | | ???????????????????# ??????????????????????????? | | ???????????????????# ??????????????????????????? | | ???????????????????? ??????????????????????????? | | ?????????????????????????????????????????????????? | | ?????????????????????????????????????????????????? | | ?????????????????????????????????????????????????? | | ?????????????????????????????????????????????????? | | ?????????????????????????????????????????????????? | | ?????????????????????????????????????????????????? | | ?????????????????????????????????????????????????? | | ?????????????????????????????????????????????????? | | ?????????????????????????????????????????????????? | +----------------------------------------------------+ Best States ------------- Heat Dissipation 50 Energy Generation 32 Energy Capacity 625 Matter Stores 500 Matter Capacity 500 Sight Range 16 Robot Scan Range 14 Terrain Scan Density 10 Resistance: KI 35 Resistance: TH 35 Resistance: EX 35 Resistance: EM 35 Resistance: I 35 Resistance: S 35 Resistance: P 35 Evasion (%) 53 Targeting Accuracy 5 Recoil Reduction 2 Offensive Hacking 20 Item Schematics ----------------- None Robot Schematics ------------------ None Fabricated ------------ Nothing Alien Tech Used ----------------- None Achievements -------------- Fist Fight I Survived The Infestation Challenges ------------ None Game ------ Seed GreatForceWand Manual? 0 Play Time 00:37:42 Cumulative 3.3 hours Start 2024.05.08 @ 02:20:25 End 2024.05.08 @ 11:40:35 Sessions 2 Manual Loads 0 Difficulty Explorer Special Mode None Game No. 4 Rogue 0 Adventurer 0 Explorer 4 Win Type - Total 0 Types 0/0/0/0/0/0/0/0/0 Lore% 3 Gallery% 9 Achievement% 11 Wizard Run 0 Options --------- Layout 1 ASCII 0 Keyboard 0 Movement Arrows Keybinds 0 Fullscreen 1 Font 24/Smallcaps Map View 50x35 Zoom Use 0% Tactical HUD 0 Map Filters NONE Filters NONE Steam 1 RUN: 984895c6-e89a-46f7-bbd0-87097f74d223